bitfinex-derivatives/quotes_SOLF0:USTF0_20250310
["timestamp","ask_amount","ask_price","bid_price","bid_amount"]
[1741632528900,0.05916539,117.89,117.87,0.06462735]
[1741632529089,0.05916539,117.89,117.87,66.75323769]
[1741632529291,280.04,117.95,117.88,53.5]
[1741632529501,280.04,117.95,117.89,66.68861034]
[1741632529703,280.04,117.95,117.88,57.5715]
[1741632530301,280.04,117.95,117.89,4.2756]
[1741632530698,8.54053941,117.93,117.91,0.05897319]
[1741632531002,0.05653941,117.93,117.91,0.05897319]
[1741632535505,337.6085,118.0,117.91,66.74758353]
[1741632535699,337.6085,118.0,117.9,4.4131]
[1741632535700,404.29711034,118.0,117.9,4.4131]
[1741632536303,404.29711034,118.0,117.89,4.2756]
[1741632536304,66.68861034,117.96,117.89,4.2756]
[1741632536510,120.12861034,117.96,117.88,4.0715]
[1741632536711,0.06065605,117.94,117.91,0.05835768]
[1741632537313,0.06065605,117.94,117.86,4.3007]
[1741632537516,66.74926639,117.94,117.84,57.6623]
[1741632537716,279.98,117.93,117.84,57.6623]
[1741632538518,0.05808289,117.9,117.87,0.06288307]
[1741632540612,8.54428289,117.9,117.87,0.06288307]
[1741632541007,0.05808289,117.9,117.87,0.06288307]
[1741632541815,0.05808289,117.9,117.88,8.4872]
[1741632542018,0.05808289,117.9,117.87,0.06288307]
[1741632542019,0.05808289,117.9,117.87,120.17149341]
[1741632542317,11.6449512,117.98,117.89,66.68861034]
[1741632542519,11.6449512,117.98,117.9,4.1782]
[1741632542816,131.75356154,117.98,117.9,4.1782]
[1741632543017,8.4847,117.92,117.9,4.1782]
[1741632543219,65.0649512,117.98,117.9,4.1782]
[1741632543518,11.6449512,117.98,117.92,8.484]
[1741632543717,337.49825182,118.01,117.92,8.484]
[1741632543718,141.19391663,118.01,117.92,8.484]
[1741632544012,8.4805,117.98,117.93,8.483]
[1741632544213,87.79391663,118.01,117.93,66.68861034]
[1741632544621,8.4808,117.97,117.96,0.06051393]
[1741632544811,0.05783332,117.98,117.96,0.06051393]
[1741632545112,8.4808,117.97,117.96,0.06051393]
[1741632545319,0.05783332,117.98,117.96,0.06051393]
[1741632545815,8.4808,117.97,117.96,0.06051393]
[1741632546114,0.05783332,117.98,117.96,0.06051393]
[1741632547215,8.53843332,117.98,117.96,0.06051393]
[1741632547410,0.05783332,117.98,117.96,0.06051393]
[1741632549015,11.6449512,118.05,117.96,73.49062427]
[1741632549216,11.6449512,118.05,117.97,4.3741]
[1741632549616,120.04861034,118.06,117.97,4.3741]
[1741632549813,66.68861034,118.04,117.96,4.2015]
[1741632550015,8.4804,117.98,117.93,4.3741]
[1741632550209,8.0354,118.03,117.93,45.35781806]
[1741632550414,0.05636819,117.97,117.94,0.06166395]
[1741632550619,8.0354,118.03,117.95,8.4822]
[1741632550820,0.06496739,117.97,117.94,0.05778956]
[1741632551021,8.4797,117.99,117.94,8.4824]
[1741632551212,8.4797,117.99,117.94,8.54540754]
[1741632551414,0.0605814,117.97,117.94,8.54540754]
[1741632551610,0.0605814,117.97,117.94,0.06300754]
[1741632552123,8.4822,117.95,117.94,0.06300754]
[1741632552918,0.0605814,117.97,117.94,0.06300754]
[1741632553321,4.0756814,117.97,117.94,0.06300754]
[1741632553522,8.4822,117.95,117.94,0.06300754]
[1741632554417,8.3095814,117.97,117.88,4.2022]
[1741632554617,8.4851,117.91,117.88,4.2022]
[1741632554821,44.98861806,117.96,117.88,4.2022]
[1741632555124,8.4855,117.91,117.88,4.2022]
[1741632555418,44.98861806,117.96,117.88,4.2022]
[1741632555621,8.4865,117.89,117.88,0.06361975]
[1741632555922,0.05604434,117.91,117.85,57.5475]
[1741632556221,8.4872,117.88,117.87,0.05415685]
[1741632557322,53.36074938,117.89,117.79,45.23121806]
[1741632557517,53.36074938,117.89,117.79,102.62241806]
[1741632557817,4.0939,117.9,117.79,102.62241806]
[1741632558017,4.0939,117.9,117.81,40.98371806]
[1741632558427,8.54742776,117.87,117.84,0.0588443]
[1741632558818,0.05902776,117.87,117.84,0.0588443]
[1741632559121,8.4891,117.86,117.84,0.0588443]
[1741632559318,0.05902776,117.87,117.84,0.0588443]
[1741632559514,8.4894,117.85,117.84,0.0588443]
[1741632559712,0.05902776,117.87,117.84,0.0588443]
[1741632560313,279.97902776,117.87,117.84,4.43e-05]
[1741632560513,8.4894,117.85,117.84,4.43e-05]
[1741632561820,40.98371806,117.86,117.75,94.28371806]
[1741632562020,40.98371806,117.86,117.75,98.58991806]
[1741632562325,8.4939,117.79,117.75,98.58991806]
[1741632562624,4.3769,117.85,117.75,98.58991806]
[1741632562926,0.05629753,117.81,117.79,0.06415522]
[1741632564324,8.493,117.8,117.79,0.06415522]
[1741632564525,0.05629753,117.81,117.79,0.06415522]
[1741632564925,8.54909753,117.81,117.79,0.06415522]
[1741632565420,8.493,117.8,117.79,0.06415522]
[1741632565825,0.05629753,117.81,117.79,0.06415522]
[1741632566126,8.493,117.8,117.79,0.06415522]
[1741632566523,0.05629753,117.81,117.74,4.3315]
[1741632566827,40.98371806,117.82,117.74,4.3315]
[1741632567023,57.3714,117.83,117.74,4.3315]
[1741632567226,8.4934,117.8,117.75,8.4965]
[1741632567720,8.55888588,117.79,117.76,0.05349894]
[1741632567925,0.06508588,117.79,117.76,0.05349894]
[1741632569027,0.06508588,117.79,117.76,53.33349894]
[1741632569220,0.06508588,117.79,117.77,12.5856]
[1741632569416,0.06508588,117.79,117.77,4.0905]
[1741632569822,8.4911,117.83,117.77,47.61421806]
[1741632570014,8.4911,117.83,117.77,45.07421806]
[1741632570221,279.92,117.87,117.79,40.98371806]
[1741632570423,279.92,117.87,117.8,57.6381]
[1741632570628,8.489,117.86,117.81,8.4919]
[1741632570927,0.05459986,117.85,117.82,0.06299322]
[1741632571128,0.05459986,117.85,117.82,8.4911]
[1741632571324,0.05459986,117.85,117.81,40.98371806]
[1741632571529,0.05459986,117.85,117.82,0.06393897]
[1741632572327,0.05459986,117.85,117.82,8.55513897]
[1741632572526,0.05459986,117.85,117.82,0.06393897]
[1741632573027,8.54439986,117.85,117.82,0.06393897]
[1741632573224,0.05459986,117.85,117.82,0.06393897]
[1741632574923,46.84931092,118.01,117.84,81.96743612]
[1741632575123,53.58831806,118.0,117.87,40.98371806]
[1741632575424,8.4811,117.97,117.88,53.24]
[1741632575625,106.82831806,118.0,117.88,53.24]
[1741632575818,280.1,117.99,117.88,53.24]
[1741632576023,0.05603824,117.95,117.88,53.24]
[1741632576427,0.05603824,117.95,117.9,0.05350297]
[1741632576629,0.05603824,117.95,117.9,8.53920297]
[1741632576831,0.05603824,117.95,117.9,0.05350297]
[1741632577330,0.05603824,117.95,117.9,8.53910297]
[1741632577523,0.05603824,117.95,117.9,0.05350297]
[1741632577729,0.05603824,117.95,117.94,8.4829]
[1741632578226,12.6046,118.0,117.93,40.98371806]
[1741632578227,12.6046,118.0,117.93,66.65953586]
[1741632578429,280.04,118.04,117.95,66.60511511]
[1741632578637,4.1953,118.03,117.95,66.60511511]
[1741632578821,4.1953,118.03,117.95,75.08701511]
[1741632579226,4.1953,118.03,117.96,53.2]
[1741632579428,0.05699978,118.0,117.98,0.05749234]
[1741632581226,8.3049,118.07,117.99,66.60511511]
[1741632582225,8.3049,118.07,117.98,4.2828]
[1741632582433,0.05968876,118.04,118.02,0.05743718]
[1741632588834,8.53578876,118.04,118.02,0.05743718]
[1741632589134,0.05968876,118.04,118.02,0.05743718]
[1741632592436,8.4764,118.03,118.02,0.05743718]
[1741632593337,8.4791,118.0,117.94,66.60511511]
[1741632593636,4.168,118.04,117.94,70.88251511]
[1741632593934,4.168,118.04,117.96,66.60511511]
[1741632594231,4.168,118.04,117.96,75.08641511]
[1741632594431,0.05625216,118.01,117.99,0.06142383]
[1741632594834,4.1556,118.07,118.0,66.60511511]
[1741632596036,0.05371542,118.05,118.02,0.05609681]
[1741632596336,8.4761,118.04,118.02,0.05609681]
[1741632596531,0.05371542,118.05,118.02,0.05609681]
[1741632597532,8.4764,118.03,118.02,0.05609681]
[1741632597736,0.05371542,118.05,118.02,0.05609681]
[1741632599138,4.383,118.11,118.04,66.60511511]
[1741632600036,8.4722,118.09,118.04,75.08051511]
[1741632600342,0.06397419,118.08,118.05,0.06323616]
[1741632601039,8.4743,118.06,118.05,0.06323616]
[1741632601240,0.06397419,118.08,118.05,0.06323616]
[1741632602737,8.4743,118.06,118.05,0.06323616]
[1741632602939,0.06397419,118.08,117.99,4.3464]
[1741632603139,8.4768,118.03,117.99,4.3464]
[1741632603540,40.91229683,118.09,117.99,4.3464]
[1741632603935,0.05636604,118.05,118.04,40.91229683]
[1741632604131,8.4696,118.13,118.08,8.4726]
[1741632604431,4.1092,118.14,118.07,40.91229683]
[1741632604745,8.4707,118.12,118.07,49.38579683]
[1741632604934,4.1092,118.14,118.07,40.91229683]
[1741632605135,0.05422459,118.12,118.09,0.0625953]
[1741632606338,279.64,118.11,118.09,9.53e-05]
[1741632606642,288.0016,118.11,118.01,40.91229683]
[1741632607039,288.0016,118.11,118.03,40.91229683]
[1741632607239,288.0016,118.11,118.01,40.91229683]
[1741632607642,0.0564235,118.07,118.05,0.06261295]
[1741632608043,52.96,118.14,118.05,49.44980978]
[1741632608339,279.6,118.16,118.09,40.91229683]
[1741632608539,8.4696,118.13,118.09,40.91229683]
[1741632609032,8.4713,118.11,118.07,93.83229683]
[1741632609234,8.4713,118.11,118.1,0.06414114]
[1741632610139,8.52825958,118.12,118.1,0.06414114]
[1741632610342,0.05795958,118.12,118.1,0.06414114]
[1741632610842,8.4707,118.11,118.1,0.06414114]
[1741632615749,8.4707,118.11,118.1,4.114e-05]
[1741632616543,16.9568,118.11,118.1,4.114e-05]
[1741632617142,8.4707,118.11,118.1,4.114e-05]
[1741632618036,108.4707,118.11,118.1,4.114e-05]
[1741632618652,8.4764,118.03,118.02,8.4097]
[1741632618946,104.361,118.11,118.02,8.4097]
[1741632619144,8.4732,118.08,118.03,12.7681]
[1741632619740,100.0,118.11,118.03,4.2917]
[1741632619942,0.06011335,118.07,118.04,0.05668522]
[1741632620344,100.0,118.11,118.05,93.75229683]
[1741632621644,0.0621735,118.09,118.07,0.06392331]
[1741632621844,8.4729,118.08,118.07,0.06392331]
[1741632622050,0.0621735,118.09,118.07,0.06392331]
[1741632622354,8.4729,118.08,118.07,0.06392331]
[1741632622651,8.4729,118.08,118.07,2.331e-05]
[1741632623055,12.874,118.08,118.07,2.331e-05]
[1741632625455,8.4729,118.08,118.07,2.331e-05]
[1741632626047,0.0621735,118.09,118.07,2.331e-05]
[1741632626854,0.0621735,118.09,118.07,4.37572331]
[1741632629256,100.0,118.11,118.07,4.37572331]
[1741632629859,18.40465219,118.11,118.08,66.45746213]
[1741632630258,26.93086107,118.11,118.08,66.45746213]
[1741632630463,18.45986107,118.11,118.08,66.45746213]
[1741632630654,18.45986107,118.11,118.07,4.37572331]
[1741632630953,18.45986107,118.11,118.08,66.45746213]
[1741632631157,11.83376107,118.11,118.08,66.45746213]
[1741632631355,11.83376107,118.11,118.07,4.37572331]
[1741632632363,20.30476107,118.11,118.07,4.37572331]
[1741632632548,11.83376107,118.11,118.07,4.37572331]
[1741632632750,11.83376107,118.11,118.07,57.13572331]
[1741632632954,8.4722,118.09,118.07,52.76002331]
[1741632633156,11.83376107,118.11,118.07,2.331e-05]
[1741632633661,8.4729,118.08,118.07,2.331e-05]
[1741632634158,11.83376107,118.11,118.07,2.331e-05]
[1741632634762,8.4719,118.1,118.07,2.331e-05]
[1741632635061,11.83376107,118.11,118.07,2.331e-05]
[1741632635362,8.4718,118.1,118.07,2.331e-05]
[1741632635563,11.83376107,118.11,118.07,2.331e-05]
[1741632635862,8.4725,118.09,118.07,2.331e-05]
[1741632636055,11.83376107,118.11,118.07,2.331e-05]
[1741632636758,8.4726,118.09,118.07,2.331e-05]
[1741632637154,11.83376107,118.11,118.07,2.331e-05]
[1741632638764,8.2005,118.17,118.1,66.45746213]
[1741632638964,8.4683,118.15,118.11,8.4707]
[1741632639563,8.4683,118.15,118.1,66.45746213]
[1741632639564,8.2005,118.17,118.1,66.45746213]
[1741632639962,0.05960637,118.15,118.12,0.06490107]
[1741632640166,8.4689,118.14,118.12,0.06490107]
[1741632641262,0.05960637,118.15,118.12,0.06490107]
[1741632641568,8.4692,118.14,118.12,0.06490107]
[1741632641764,0.05960637,118.15,118.12,0.06490107]
[1741632642067,8.4685,118.14,118.12,0.06490107]
[1741632642255,0.05960637,118.15,118.12,0.06490107]
[1741632642658,8.469,118.14,118.12,0.06490107]
[1741632643262,0.05960637,118.15,118.12,0.06490107]
[1741632645064,0.05960637,118.15,118.14,66.45746213]
[1741632645263,12.5456,118.23,118.14,66.45746213]
[1741632645462,8.4648,118.2,118.14,66.45746213]
[1741632645657,12.5456,118.23,118.14,66.45746213]
[1741632645864,8.465,118.19,118.14,66.45746213]
[1741632646167,8.465,118.19,118.15,8.4675]
[1741632646363,8.52942377,118.18,118.15,0.06146435]
[1741632646562,0.06332377,118.18,118.15,8.4677]
[1741632646762,0.06332377,118.18,118.15,8.52980503]
[1741632647767,0.06332377,118.18,118.15,0.06210503]
[1741632649565,8.52912377,118.18,118.15,0.06210503]
[1741632649966,0.06332377,118.18,118.15,0.06210503]
[1741632650566,0.06332377,118.18,118.15,8.52950503]
[1741632651269,0.06332377,118.18,118.15,0.06210503]
[1741632651270,8.52902377,118.18,118.15,0.06210503]
[1741632651565,0.06332377,118.18,118.15,0.06210503]
[1741632651765,8.1918,118.17,118.09,56.8432]
[1741632652359,8.4697,118.13,118.09,4.2432]
[1741632652560,8.1918,118.17,118.08,52.6]
[1741632652859,0.05940694,118.14,118.11,0.06125028]
[1741632653372,8.47,118.12,118.11,0.06125028]
[1741632653675,0.05940694,118.14,118.11,0.06125028]
[1741632654474,0.05940694,118.14,118.11,8.53185028]
[1741632654862,0.05940694,118.14,118.11,0.06125028]
[1741632655568,0.05940694,118.14,118.11,8.53135028]
[1741632655766,0.05940694,118.14,118.11,40.9084197]
[1741632656467,8.4671,118.17,118.13,40.84716942]
[1741632656667,8.4671,118.17,118.13,49.31606942]
[1741632657365,8.4671,118.17,118.13,40.84716942]
[1741632657571,60.8638,118.21,118.14,8.4685]
[1741632657572,8.4661,118.18,118.14,8.4685]
[1741632657870,0.05407229,118.16,118.14,0.05861739]
[1741632658068,283.4512,118.22,118.15,40.84716942]
[1741632658470,52.56,118.25,118.16,52.56]
[1741632658770,8.4643,118.2,118.17,8.4664]
[1741632659164,8.4643,118.2,118.16,52.56]
[1741632659364,0.0539595,118.2,118.17,0.06161328]
[1741632659967,0.0539595,118.2,118.12,56.6149]
[1741632660167,93.38716942,118.21,118.09,93.38716942]
[1741632660370,40.84716942,118.19,118.1,8.4711]
[1741632660565,8.4675,118.16,118.1,8.4711]
[1741632660771,52.54,118.19,118.09,93.38716942]
[1741632661075,8.4661,118.18,118.11,40.84716942]
[1741632661372,287.5329,118.2,118.11,40.84716942]
[1741632661573,8.52792219,118.16,118.13,0.06450395]
[1741632662468,8.52782219,118.16,118.13,0.06450395]
[1741632662872,0.06032219,118.16,118.13,0.06450395]
[1741632663080,0.06032219,118.16,118.14,8.4685]
[1741632663268,0.06032219,118.16,118.13,93.43167337]
[1741632664273,279.34,118.25,118.15,40.84716942]
[1741632664467,12.5544,118.24,118.17,40.84716942]
[1741632664672,12.5544,118.24,118.17,93.34716942]
[1741632665473,0.06186466,118.22,118.19,40.90120253]
[1741632665774,21.0133,118.28,118.22,8.4627]
[1741632666079,0.06479474,118.26,118.23,40.84716942]
[1741632666278,0.06479474,118.26,118.24,0.05743897]
[1741632666773,0.06479474,118.26,118.24,8.51823897]
[1741632666978,0.06479474,118.26,118.24,0.05743897]
[1741632667380,0.06479474,118.26,118.25,8.4607]
[1741632667789,4.1683,118.32,118.25,43.38716942]
[1741632667973,11.6449512,118.33,118.28,40.84716942]
[1741632668380,20.1001512,118.33,118.28,40.84716942]
[1741632668581,11.6449512,118.33,118.26,93.32716942]
[1741632668778,64.1249512,118.33,118.23,40.84716942]
[1741632668972,0.05805427,118.31,118.28,0.05981226]
[1741632669479,0.05805427,118.31,118.28,52.51981226]
[1741632669678,0.05805427,118.31,118.28,0.05981226]
[1741632672488,0.05805427,118.31,118.21,231.84716942]
[1741632672693,40.84716942,118.33,118.22,52.42]
[1741632673082,40.84716942,118.31,118.22,52.42]
[1741632673277,8.4598,118.27,118.22,52.42]
[1741632673486,93.26716942,118.31,118.22,52.42]
[1741632673685,0.06238146,118.26,118.23,0.05483318]
[1741632673886,0.06238146,118.26,118.22,52.42]
[1741632674081,0.06238146,118.26,118.19,40.84716942]
[1741632674283,0.06238146,118.26,118.23,0.06206401]
[1741632674585,8.4614,118.24,118.23,0.06206401]
[1741632675588,8.4635,118.22,118.18,52.4]
[1741632675781,8.5847,118.28,118.18,52.4]
[1741632675988,372.42716942,118.27,118.16,52.4]
[1741632676195,40.84716942,118.23,118.13,93.24716942]
[1741632676485,52.4,118.23,118.11,97.34756942]
[1741632676690,0.06291191,118.19,118.17,9.527e-05]
[1741632677791,8.4657,118.18,118.17,9.527e-05]
[1741632678284,11.0057,118.18,118.17,9.527e-05]
[1741632678487,8.4704,118.12,118.06,52.38]
[1741632678691,40.84716942,118.17,118.05,40.84716942]
[1741632678995,40.84716942,118.17,118.07,8.4735]
[1741632679195,8.469,118.14,118.07,8.4735]
[1741632679587,0.0599466,118.12,118.07,8.4735]
[1741632679793,0.0599466,118.12,118.09,0.05435452]
[1741632679988,0.0599466,118.12,118.09,40.90152394]
[1741632680199,0.0599466,118.12,118.1,52.38]
[1741632681890,0.0599466,118.12,118.09,0.05435452]
[1741632682400,8.4732,118.08,118.03,101.70626942]
[1741632682594,4.3218,118.11,118.01,40.84716942]
[1741632682790,8.5459,118.11,118.01,93.22716942]
[1741632682994,8.5459,118.11,118.05,40.84716942]
[1741632683193,8.5459,118.11,118.06,52.36]
[1741632683495,8.5459,118.11,118.07,8.4732]
[1741632683694,0.06451709,118.1,118.07,40.90329877]
[1741632684092,279.28,118.18,118.07,40.84716942]
[1741632684297,0.0607084,118.1,118.07,40.90181137]
[1741632684502,320.12716942,118.18,118.07,40.84716942]
[1741632684695,0.05611544,118.1,118.07,40.90693418]
[1741632684891,52.36,118.15,118.07,40.84716942]
[1741632685095,52.36,118.15,118.07,40.91149988]
[1741632685096,0.05824187,118.1,118.07,40.91149988]
[1741632685300,0.05824187,118.1,118.07,40.84716942]
[1741632685599,0.05824187,118.1,118.07,40.90687304]
[1741632685796,0.05824187,118.1,118.08,8.4727]
[1741632686201,0.05824187,118.1,118.07,40.90687304]
[1741632686993,320.12716942,118.18,118.09,40.84716942]
[1741632686994,331.64,118.18,118.09,40.84716942]
[1741632687294,279.28,118.18,118.11,40.84716942]
[1741632687498,8.4665,118.17,118.12,8.4695]
[1741632687899,8.4694,118.13,118.1,52.36]
[1741632688095,283.1779,118.18,118.07,40.84716942]
[1741632688400,283.1779,118.18,118.1,0.06040113]
[1741632688401,0.05339762,118.13,118.1,0.06040113]
[1741632688589,0.05339762,118.13,118.07,93.20716942]
[1741632688789,0.05339762,118.13,118.1,0.06457227]
[1741632690195,0.05339762,118.13,118.11,40.84716942]
[1741632690392,0.05339762,118.13,118.1,0.06457227]
[1741632692400,8.4707,118.11,118.1,0.06457227]
[1741632692604,0.05339762,118.13,118.1,0.06457227]
[1741632693606,8.4707,118.11,118.1,0.06457227]
[1741632693801,0.05339762,118.13,118.05,93.16716942]
[1741632694005,8.4718,118.12,118.04,8.3435]
[1741632694207,60.7918,118.12,118.0,4.1317]
[1741632694408,60.7918,118.12,118.01,40.84716942]
[1741632694606,40.84716942,118.09,117.99,40.84716942]
[1741632694907,52.32,118.08,117.99,40.84716942]
[1741632695108,0.05803133,118.05,118.03,0.05403913]
[1741632695309,0.05803133,118.05,117.95,45.07786942]
[1741632695603,8.479,118.0,117.95,45.07786942]
[1741632695807,4.2808,118.04,117.95,45.07786942]
[1741632696197,4.2808,118.04,117.94,188.05315543]
[1741632696396,4.191,118.03,117.94,188.05315543]
[1741632696601,0.05535177,118.01,117.98,3.058e-05]
[1741632697006,4.191,118.03,117.98,3.058e-05]
[1741632697204,8.4793,117.99,117.98,3.058e-05]
[1741632697608,11.0193,117.99,117.98,3.058e-05]
[1741632697816,8.4793,117.99,117.98,3.058e-05]
[1741632698211,52.37456805,118.0,117.98,3.058e-05]
[1741632698407,8.4793,117.99,117.98,3.058e-05]
[1741632698600,75.07611633,117.99,117.98,3.058e-05]
[1741632698805,69.13681633,117.99,117.88,92.82200587]
[1741632699004,66.59681633,117.95,117.88,92.82200587]
[1741632699204,52.32,117.94,117.88,92.82200587]
[1741632699408,52.32,117.94,117.86,66.59681633]
[1741632699709,52.32,117.94,117.85,66.59681633]
[1741632699909,279.52,117.95,117.85,66.59681633]
[1741632700111,0.0585278,117.91,117.88,0.05981558]
[1741632701004,0.0585278,117.91,117.82,56.3382]
[1741632701411,118.91681633,117.93,117.83,8.4905]
[1741632701604,52.32,117.93,117.79,66.59681633]
[1741632701803,66.59681633,117.91,117.81,66.59681633]
[1741632702012,118.91681633,117.93,117.81,66.59681633]
[1741632702212,118.91681633,117.93,117.8,4.1097]
[1741632702414,8.4887,117.86,117.85,3.337e-05]
[1741632702913,2.54,117.86,117.76,52.32]
[1741632703112,56.5864,117.87,117.76,52.32]
[1741632703416,66.59681633,117.82,117.72,52.32]
[1741632703610,118.93681633,117.82,117.72,52.32]
[1741632703910,52.34,117.82,117.72,52.32]
[1741632704116,52.34,117.85,117.74,66.59681633]
[1741632704514,4.1222,117.86,117.78,66.59681633]
[1741632704814,8.4889,117.86,117.8,66.59681633]
[1741632705015,0.06109591,117.83,117.82,66.59681633]
[1741632705211,8.4863,117.9,117.82,118.93681633]
[1741632705405,4.1222,117.93,117.86,66.59681633]
[1741632705610,4.1222,117.93,117.86,118.95681633]
[1741632705809,4.1222,117.93,117.82,118.95681633]
[1741632705810,70.71901633,117.93,117.82,118.95681633]
[1741632706010,4.259,117.94,117.86,66.59681633]
[1741632706211,3.8196,117.97,117.88,66.59681633]
[1741632706410,0.06088208,117.91,117.89,0.05540082]
[1741632706606,3.8196,117.97,117.89,0.05540082]
[1741632706810,70.41641633,117.97,117.87,52.36]
[1741632707011,0.06468406,117.91,117.87,52.36]
[1741632707216,0.06468406,117.91,117.8,261.60851633]
[1741632707515,118.95681633,117.93,117.81,52.36]
[1741632707715,66.59681633,117.91,117.84,0.06482391]
[1741632707914,0.06197153,117.87,117.84,0.06482391]
[1741632708115,0.06197153,117.87,117.81,52.36]
[1741632708316,0.06197153,117.87,117.84,0.06288486]
[1741632708518,8.55017153,117.87,117.84,0.06288486]
[1741632708808,66.65878786,117.87,117.77,52.38]
[1741632709115,8.4909,117.83,117.76,66.59681633]
[1741632709515,66.59681633,117.87,117.76,66.59681633]
[1741632709818,7.9926,117.89,117.8,66.59681633]
[1741632710015,0.05739366,117.83,117.81,52.38]
[1741632710217,4.2408,117.9,117.82,66.59681633]
[1741632710720,8.4846,117.92,117.86,66.59681633]
[1741632710912,66.59681633,117.99,117.88,66.59681633]
[1741632711220,8.4831,117.94,117.89,52.36]
[1741632711409,0.05639557,117.95,117.92,0.05580269]
[1741632711821,8.4836,117.93,117.92,0.05580269]
[1741632712214,0.05639557,117.95,117.92,0.05580269]
[1741632713220,0.05639557,117.95,117.92,66.65261902]
[1741632713420,0.05639557,117.95,117.92,0.05580269]
[1741632718420,0.05639557,117.95,117.93,52.36]
[1741632718615,279.94,118.02,117.93,118.95681633]
[1741632718822,279.94,118.02,117.94,3.9998]
[1741632719019,8.4789,118.0,117.94,3.9998]
[1741632719418,8.4783,118.01,117.95,66.59681633]
[1741632719821,3.9042,118.04,117.97,66.59681633]
[1741632720023,52.36,118.06,117.97,127.50010768]
[1741632720024,0.06220538,117.99,117.97,127.50010768]
[1741632720331,0.05530346,117.99,117.97,118.95681633]
[1741632720627,11.9011,118.07,117.97,119.01536717]
[1741632720815,11.9011,118.07,117.98,66.59681633]
[1741632721019,8.4746,118.06,118.01,8.4778]
[1741632721217,8.4746,118.06,118.01,60.8178]
[1741632721421,66.59681633,118.1,118.01,52.34]
[1741632721620,0.05609231,118.05,118.02,0.05414642]
[1741632722017,8.4764,118.03,118.02,52.34]
[1741632722225,8.4764,118.03,118.02,0.06158744]
[1741632722423,0.05609231,118.05,118.02,0.06158744]
[1741632723136,8.4764,118.03,118.02,8.744e-05]
[1741632723320,0.05609231,118.05,118.02,8.744e-05]
[1741632724832,8.4764,118.03,118.02,8.744e-05]
[1741632725433,54.88,118.03,117.9,66.59681633]
[1741632725631,66.59681633,118.01,117.91,52.34]
[1741632726033,11.7381,118.02,117.92,66.59681633]
[1741632726228,279.8,118.05,117.97,8.4803]
[1741632726426,8.4799,117.99,117.97,52.34]
[1741632726626,0.06084358,118.02,117.94,52.34]
[1741632726826,66.59681633,118.03,117.94,52.34]
[1741632727230,66.59681633,118.03,117.92,52.34]
[1741632727433,66.59681633,118.03,117.92,118.93681633]
[1741632727832,0.05840735,117.99,117.96,0.05843511]
[1741632728031,0.05840735,117.99,117.95,52.34]
[1741632728223,0.05840735,117.99,117.96,0.05437814]
[1741632728534,0.06469501,117.98,117.96,0.05437814]
[1741632728830,8.4768,118.03,117.96,66.59681633]
[1741632729136,3.9089,118.04,117.96,0.06474998]
[1741632729334,8.4802,117.98,117.95,52.34]
[1741632729630,66.59681633,118.0,117.9,66.59681633]
[1741632729833,74.37701633,118.0,117.9,52.32]
[1741632730333,7.7802,118.0,117.9,118.91681633]
[1741632730629,52.32,118.02,117.92,66.59681633]
[1741632730827,0.06426149,117.96,117.94,0.06190842]
[1741632731029,11.8973,118.04,117.94,118.91681633]
[1741632731333,0.06220864,117.96,117.94,118.97754261]
[1741632731532,11.8973,118.04,117.94,118.91681633]
[1741632731734,11.8973,118.04,117.96,66.59681633]
[1741632731933,0.06446644,118.0,117.96,66.59681633]
[1741632732133,0.06446644,118.0,117.99,0.05868575]
[1741632732730,0.06446644,118.0,117.99,8.575e-05]
[1741632733035,8.4833,117.94,117.87,118.97681633]
[1741632733225,118.98128277,118.0,117.89,75.08321633]
[1741632733426,52.32,118.0,117.89,66.59681633]
[1741632733628,8.4819,117.96,117.91,66.59681633]
[1741632733829,279.78,118.01,117.92,52.36]
[1741632734026,279.78,118.01,117.92,56.4463]
[1741632734233,8.4815,117.96,117.95,0.06418529]
[1741632734433,0.05933628,117.98,117.95,0.06418529]
[1741632734730,8.4815,117.96,117.95,0.06418529]
[1741632735127,66.65615261,117.98,117.87,74.70281633]
[1741632735337,118.91681633,117.99,117.89,52.32]
[1741632735736,8.4846,117.92,117.89,52.32]
[1741632735933,118.91681633,117.99,117.89,52.32]
[1741632736135,52.32,117.99,117.89,118.91681633]
[1741632736336,0.05962657,117.95,117.93,0.05433502]
[1741632736737,8.4835,117.94,117.93,3.502e-05]
[1741632736938,0.05962657,117.95,117.87,4.1808]
[1741632737136,66.59681633,117.95,117.83,66.59681633]